[Event "Titled Tuesday Blitz February 15 Early 2022"]
[White "Smith, Shreyas"]
[Black "Kraus, Tomas"]
[WhiteFideId "7400713"]
[BlackFideId "331708"]
[WhiteElo "2129"]
[BlackElo "2389"]
[Result "0-1"]
[Round "03"]
[TimeControl "180+1"]
[Date "2022.02.15"]
[WhiteClock "0:00:01"]
[BlackClock "0:00:02"]

1. e4 {[%clk 0:03:00]}  e6 {[%clk 0:03:00]} 2. d4 {[%clk 0:02:59]}  d5 {[%clk 0:03:00]} 3. e5 {[%clk 0:03:00]}  c5 {[%clk 0:03:00]} 4. Nf3 {[%clk 0:03:01]}  Nc6 {[%clk 0:03:00]} 5. Bd3 {[%clk 0:02:59]}  cxd4 {[%clk 0:02:56]} 6. O-O {[%clk 0:02:59]}  Nh6 {[%clk 0:02:51]} 7. c3 {[%clk 0:02:43]}  dxc3 {[%clk 0:02:42]} 8. bxc3 {[%clk 0:02:44]}  Nf5 {[%clk 0:02:40]} 9. Bxf5 {[%clk 0:02:42]}  exf5 {[%clk 0:02:41]} 10. Na3 {[%clk 0:02:35]}  Be6 {[%clk 0:02:37]} 11. Nb5 {[%clk 0:02:29]}  a6 {[%clk 0:02:29]} 12. Nbd4 {[%clk 0:02:01]}  Nxd4 {[%clk 0:02:26]} 13. Nxd4 {[%clk 0:01:43]}  Be7 {[%clk 0:02:25]} 14. Qd3 {[%clk 0:01:06]}  Rc8 {[%clk 0:02:20]} 15. Qg3 {[%clk 0:00:50]}  Kf8 {[%clk 0:02:01]} 16. Rb1 {[%clk 0:00:39]}  b5 {[%clk 0:01:58]} 17. Qf3 {[%clk 0:00:27]}  Rc4 {[%clk 0:01:46]} 18. Nxf5 {[%clk 0:00:20]}  Bxf5 {[%clk 0:01:32]} 19. Qxf5 {[%clk 0:00:21]}  Qc8 {[%clk 0:01:31]} 20. Qd3 {[%clk 0:00:12]}  Qc6 {[%clk 0:01:17]} 21. Bd2 {[%clk 0:00:12]}  h5 {[%clk 0:01:12]} 22. f4 {[%clk 0:00:12]}  Bc5+ {[%clk 0:01:04]} 23. Kh1 {[%clk 0:00:11]}  h4 {[%clk 0:01:00]} 24. h3 {[%clk 0:00:08]}  d4 {[%clk 0:00:47]} 25. f5 {[%clk 0:00:06]}  dxc3 {[%clk 0:00:41]} 26. Bxc3 {[%clk 0:00:06]}  Rh6 {[%clk 0:00:31]} 27. f6 {[%clk 0:00:03]}  g6 {[%clk 0:00:02]} 28. Bd2 {[%clk 0:00:01]}  Rh5 {[%clk 0:00:02]} 0-1


[Site "https://www.chess.com"]

[Event "Titled Tuesday Blitz February 15 Early 2022"]
[White "Sovetbekova, Nurai"]
[Black "Moksh Amit Doshi"]
[WhiteFideId "13801910"]
[BlackFideId "25064967"]
[WhiteElo "1545"]
[BlackElo "2245"]
[Result "0-1"]
[Round "03"]
[TimeControl "180+1"]
[Date "2022.02.15"]
[WhiteClock "0:00:10"]
[BlackClock "0:01:27"]

1. d4 {[%clk 0:03:00]}  Nf6 {[%clk 0:02:56]} 2. c4 {[%clk 0:03:01]}  g6 {[%clk 0:02:55]} 3. g3 {[%clk 0:02:58]}  c6 {[%clk 0:02:55]} 4. Bg2 {[%clk 0:02:56]}  d5 {[%clk 0:02:56]} 5. Nf3 {[%clk 0:02:54]}  Bg7 {[%clk 0:02:56]} 6. O-O {[%clk 0:02:53]}  O-O {[%clk 0:02:56]} 7. b3 {[%clk 0:02:29]}  dxc4 {[%clk 0:02:49]} 8. bxc4 {[%clk 0:02:30]}  c5 {[%clk 0:02:49]} 9. Bb2 {[%clk 0:02:20]}  Qb6 {[%clk 0:02:49]} 10. Bc3 {[%clk 0:02:13]}  Ne4 {[%clk 0:02:45]} 11. dxc5 {[%clk 0:01:56]}  Nxc3 {[%clk 0:02:38]} 12. Nxc3 {[%clk 0:01:52]}  Qxc5 {[%clk 0:02:29]} 13. Qb3 {[%clk 0:01:47]}  Nc6 {[%clk 0:02:28]} 14. Rac1 {[%clk 0:01:36]}  Be6 {[%clk 0:02:10]} 15. Na4 {[%clk 0:01:31]}  Qb4 {[%clk 0:02:08]} 16. Rfd1 {[%clk 0:01:15]}  Rad8 {[%clk 0:02:06]} 17. Rxd8 {[%clk 0:00:54]}  Rxd8 {[%clk 0:02:07]} 18. Ne1 {[%clk 0:00:55]}  Qxb3 {[%clk 0:01:57]} 19. axb3 {[%clk 0:00:54]}  Nd4 {[%clk 0:01:58]} 20. Kf1 {[%clk 0:00:32]}  Nxb3 {[%clk 0:01:53]} 21. Rc2 {[%clk 0:00:31]}  Nd2+ {[%clk 0:01:48]} 22. Kg1 {[%clk 0:00:30]}  Nxc4 {[%clk 0:01:49]} 23. Bxb7 {[%clk 0:00:24]}  Rd1 {[%clk 0:01:48]} 24. Kf1 {[%clk 0:00:23]}  Nd6 {[%clk 0:01:32]} 25. Bf3 {[%clk 0:00:20]}  Bh3+ {[%clk 0:01:31]} 26. Bg2 {[%clk 0:00:17]}  Bxg2+ {[%clk 0:01:31]} 27. Kxg2 {[%clk 0:00:18]}  Rxe1 {[%clk 0:01:32]} 28. Nc5 {[%clk 0:00:17]}  a5 {[%clk 0:01:29]} 29. Ra2 {[%clk 0:00:14]}  Bc3 {[%clk 0:01:27]} 30. Na4 {[%clk 0:00:10]}  Bb4 {[%clk 0:01:27]} 0-1


[Site "https://www.chess.com"]

[Event "Titled Tuesday Blitz February 15 Early 2022"]
[White "Stanisz, Patryk"]
[Black "Cori T., Deysi"]
[WhiteFideId "1123106"]
[BlackFideId "3801934"]
[WhiteElo "1876"]
[BlackElo "2350"]
[Result "0-1"]
[Round "03"]
[TimeControl "180+1"]
[Date "2022.02.15"]
[WhiteClock "0:00:02"]
[BlackClock "0:01:57"]

1. Nf3 {[%clk 0:03:00]}  f5 {[%clk 0:02:59]} 2. d4 {[%clk 0:02:58]}  Nf6 {[%clk 0:02:58]} 3. g3 {[%clk 0:02:58]}  d6 {[%clk 0:02:58]} 4. Bg2 {[%clk 0:02:58]}  g6 {[%clk 0:02:59]} 5. O-O {[%clk 0:02:58]}  Bg7 {[%clk 0:03:00]} 6. c4 {[%clk 0:02:59]}  O-O {[%clk 0:03:00]} 7. Nc3 {[%clk 0:02:56]}  c6 {[%clk 0:03:01]} 8. d5 {[%clk 0:02:56]}  e5 {[%clk 0:03:00]} 9. dxe6 {[%clk 0:02:56]}  Bxe6 {[%clk 0:03:00]} 10. Nd2 {[%clk 0:02:41]}  Na6 {[%clk 0:02:50]} 11. Rb1 {[%clk 0:02:41]}  Ng4 {[%clk 0:02:41]} 12. e4 {[%clk 0:02:09]}  f4 {[%clk 0:02:37]} 13. Bf3 {[%clk 0:01:25]}  Ne5 {[%clk 0:02:35]} 14. Bh1 {[%clk 0:00:58]}  fxg3 {[%clk 0:02:32]} 15. fxg3 {[%clk 0:00:57]}  Nxc4 {[%clk 0:02:30]} 16. Rxf8+ {[%clk 0:00:41]}  Qxf8 {[%clk 0:02:31]} 17. Nxc4 {[%clk 0:00:41]}  Bxc4 {[%clk 0:02:30]} 18. Be3 {[%clk 0:00:38]}  Nc5 {[%clk 0:02:27]} 19. Qd2 {[%clk 0:00:18]}  Re8 {[%clk 0:02:19]} 20. b3 {[%clk 0:00:16]}  Ba6 {[%clk 0:02:19]} 21. Re1 {[%clk 0:00:16]}  Qf6 {[%clk 0:02:02]} 22. Na4 {[%clk 0:00:06]}  Nxe4 {[%clk 0:02:01]} 23. Qg2 {[%clk 0:00:04]}  Nc3 {[%clk 0:01:57]} 24. Nxc3 {[%clk 0:00:03]}  Qxc3 {[%clk 0:01:58]} 25. Bd2 {[%clk 0:00:02]}  Bd4+ {[%clk 0:01:57]} 0-1


[Site "https://www.chess.com"]

[Event "Titled Tuesday Blitz February 15 Early 2022"]
[White "Stankovic, Ivan G"]
[Black "Ruperez Benito, Antonio"]
[WhiteFideId "902837"]
[BlackFideId "22245049"]
[WhiteElo "2195"]
[BlackElo "2249"]
[Result "1/2-1/2"]
[Round "03"]
[TimeControl "180+1"]
[Date "2022.02.15"]
[WhiteClock "0:00:10"]
[BlackClock "0:00:14"]

1. e4 {[%clk 0:03:00]}  c5 {[%clk 0:02:59]} 2. c4 {[%clk 0:02:57]}  Nc6 {[%clk 0:02:57]} 3. Nc3 {[%clk 0:02:57]}  g6 {[%clk 0:02:57]} 4. g3 {[%clk 0:02:57]}  Bg7 {[%clk 0:02:58]} 5. Bg2 {[%clk 0:02:58]}  d6 {[%clk 0:02:58]} 6. Nge2 {[%clk 0:02:58]}  Bg4 {[%clk 0:02:58]} 7. f3 {[%clk 0:02:57]}  Be6 {[%clk 0:02:58]} 8. d3 {[%clk 0:02:58]}  Qc8 {[%clk 0:02:58]} 9. h3 {[%clk 0:02:58]}  Nf6 {[%clk 0:02:57]} 10. Be3 {[%clk 0:02:58]}  O-O {[%clk 0:02:56]} 11. Rb1 {[%clk 0:02:58]}  a6 {[%clk 0:02:57]} 12. a3 {[%clk 0:02:58]}  Rb8 {[%clk 0:02:56]} 13. b4 {[%clk 0:02:58]}  cxb4 {[%clk 0:02:56]} 14. axb4 {[%clk 0:02:59]}  b5 {[%clk 0:02:56]} 15. cxb5 {[%clk 0:02:59]}  axb5 {[%clk 0:02:55]} 16. g4 {[%clk 0:02:57]}  Nd7 {[%clk 0:02:38]} 17. O-O {[%clk 0:02:33]}  Nxb4 {[%clk 0:02:34]} 18. Rxb4 {[%clk 0:02:22]}  Bxc3 {[%clk 0:02:32]} 19. Nxc3 {[%clk 0:02:22]}  Qxc3 {[%clk 0:02:29]} 20. Qb1 {[%clk 0:02:17]}  Ne5 {[%clk 0:02:12]} 21. Rd1 {[%clk 0:02:06]}  Nc4 {[%clk 0:01:58]} 22. Bh6 {[%clk 0:01:53]}  Na3 {[%clk 0:01:52]} 23. Qb2 {[%clk 0:01:48]}  Qxb2 {[%clk 0:01:51]} 24. Rxb2 {[%clk 0:01:49]}  Rfc8 {[%clk 0:01:50]} 25. f4 {[%clk 0:01:28]}  f6 {[%clk 0:01:30]} 26. f5 {[%clk 0:01:25]}  Bf7 {[%clk 0:01:29]} 27. Ra1 {[%clk 0:01:16]}  b4 {[%clk 0:01:27]} 28. Bd2 {[%clk 0:01:00]}  Nc2 {[%clk 0:01:21]} 29. Ra7 {[%clk 0:00:56]}  Kf8 {[%clk 0:01:11]} 30. g5 {[%clk 0:00:47]}  b3 {[%clk 0:01:03]} 31. gxf6 {[%clk 0:00:47]}  exf6 {[%clk 0:01:04]} 32. Bf4 {[%clk 0:00:42]}  Rb6 {[%clk 0:00:58]} 33. Bh6+ {[%clk 0:00:27]}  Kg8 {[%clk 0:00:58]} 34. Bf3 {[%clk 0:00:24]}  Nd4 {[%clk 0:00:57]} 35. Bd1 {[%clk 0:00:22]}  Nb5 {[%clk 0:00:53]} 36. Re7 {[%clk 0:00:18]}  Nc3 {[%clk 0:00:52]} 37. fxg6 {[%clk 0:00:18]}  hxg6 {[%clk 0:00:50]} 38. Bg4 {[%clk 0:00:17]}  Re8 {[%clk 0:00:46]} 39. Rxe8+ {[%clk 0:00:17]}  Bxe8 {[%clk 0:00:47]} 40. Be3 {[%clk 0:00:13]}  Rb8 {[%clk 0:00:44]} 41. Bd4 {[%clk 0:00:10]}  Na4 {[%clk 0:00:44]} 42. Rb1 {[%clk 0:00:11]}  Kg7 {[%clk 0:00:40]} 43. Bd1 {[%clk 0:00:09]}  Bf7 {[%clk 0:00:38]} 44. Kf2 {[%clk 0:00:09]}  Nc5 {[%clk 0:00:38]} 45. Ke3 {[%clk 0:00:08]}  Ne6 {[%clk 0:00:37]} 46. Bc3 {[%clk 0:00:08]}  Ng5 {[%clk 0:00:33]} 47. h4 {[%clk 0:00:07]}  Nh7 {[%clk 0:00:28]} 48. Bg4 {[%clk 0:00:07]}  Nf8 {[%clk 0:00:25]} 49. Bb2 {[%clk 0:00:07]}  Ne6 {[%clk 0:00:24]} 50. Rf1 {[%clk 0:00:08]}  Nc5 {[%clk 0:00:20]} 51. Bxf6+ {[%clk 0:00:08]}  Kg8 {[%clk 0:00:20]} 52. Bb2 {[%clk 0:00:08]}  Na4 {[%clk 0:00:20]} 53. Rb1 {[%clk 0:00:09]}  Nxb2 {[%clk 0:00:21]} 54. Rxb2 {[%clk 0:00:08]}  Rc8 {[%clk 0:00:21]} 55. Bd1 {[%clk 0:00:08]}  Kg7 {[%clk 0:00:19]} 56. Kd2 {[%clk 0:00:07]}  Rb8 {[%clk 0:00:18]} 57. Kc3 {[%clk 0:00:07]}  Rh8 {[%clk 0:00:18]} 58. Bxb3 {[%clk 0:00:07]}  Rxh4 {[%clk 0:00:18]} 59. Bxf7 {[%clk 0:00:06]}  Kxf7 {[%clk 0:00:19]} 60. Rb7+ {[%clk 0:00:06]}  Ke6 {[%clk 0:00:19]} 61. Rg7 {[%clk 0:00:06]}  Rg4 {[%clk 0:00:20]} 62. Kd4 {[%clk 0:00:07]}  Rg3 {[%clk 0:00:20]} 63. Rg8 {[%clk 0:00:06]}  Kf7 {[%clk 0:00:20]} 64. Rd8 {[%clk 0:00:06]}  Ke7 {[%clk 0:00:21]} 65. Rg8 {[%clk 0:00:06]}  Ke6 {[%clk 0:00:22]} 66. Rg7 {[%clk 0:00:06]}  g5 {[%clk 0:00:21]} 67. Rg6+ {[%clk 0:00:06]}  Ke7 {[%clk 0:00:21]} 68. e5 {[%clk 0:00:05]}  dxe5+ {[%clk 0:00:21]} 69. Kxe5 {[%clk 0:00:06]}  Kf7 {[%clk 0:00:20]} 70. Rd6 {[%clk 0:00:03]}  g4 {[%clk 0:00:18]} 71. Kf4 {[%clk 0:00:03]}  Rg1 {[%clk 0:00:18]} 72. d4 {[%clk 0:00:04]}  g3 {[%clk 0:00:19]} 73. Kf3 {[%clk 0:00:04]}  Ke7 {[%clk 0:00:17]} 74. Rh6 {[%clk 0:00:04]}  g2 {[%clk 0:00:16]} 75. Rg6 {[%clk 0:00:04]}  Rd1 {[%clk 0:00:10]} 76. Kxg2 {[%clk 0:00:04]}  Rxd4 {[%clk 0:00:10]} 77. Rg3 {[%clk 0:00:05]}  Kf6 {[%clk 0:00:10]} 78. Rf3+ {[%clk 0:00:06]}  Kg5 {[%clk 0:00:10]} 79. Rg3+ {[%clk 0:00:06]}  Kf4 {[%clk 0:00:11]} 80. Rf3+ {[%clk 0:00:07]}  Ke4 {[%clk 0:00:11]} 81. Rg3 {[%clk 0:00:07]}  Rd2+ {[%clk 0:00:12]} 82. Kh3 {[%clk 0:00:08]}  Kf4 {[%clk 0:00:13]} 83. Rg8 {[%clk 0:00:07]}  Rd1 {[%clk 0:00:12]} 84. Rf8+ {[%clk 0:00:08]}  Kg5 {[%clk 0:00:12]} 85. Kg3 {[%clk 0:00:08]}  Rd3+ {[%clk 0:00:12]} 86. Kf2 {[%clk 0:00:08]}  Kg4 {[%clk 0:00:12]} 87. Ke2 {[%clk 0:00:08]}  Ra3 {[%clk 0:00:12]} 88. Kd2 {[%clk 0:00:08]}  Kg5 {[%clk 0:00:12]} 89. Kc2 {[%clk 0:00:09]}  Kg6 {[%clk 0:00:12]} 90. Rf1 {[%clk 0:00:09]}  Re3 {[%clk 0:00:12]} 91. Kd2 {[%clk 0:00:09]}  Re7 {[%clk 0:00:12]} 92. Kd3 {[%clk 0:00:10]}  Rd7+ {[%clk 0:00:13]} 93. Kc4 {[%clk 0:00:10]}  Kg5 {[%clk 0:00:13]} 94. Kc5 {[%clk 0:00:10]}  Kg4 {[%clk 0:00:13]} 95. Kc6 {[%clk 0:00:11]}  Rd2 {[%clk 0:00:14]} 96. Kc5 {[%clk 0:00:11]}  Kg3 {[%clk 0:00:15]} 97. Rf8 {[%clk 0:00:11]}  Rf2 {[%clk 0:00:14]} 98. Rxf2 {[%clk 0:00:10]}  Kxf2 {[%clk 0:00:14]} 1/2-1/2


[Site "https://www.chess.com"]

[Event "Titled Tuesday Blitz February 15 Early 2022"]
[White "Steenbekkers, Franck"]
[Black "Sliwicki, Damian"]
[WhiteFideId "1004220"]
[BlackFideId "1127128"]
[WhiteElo "2133"]
[BlackElo "2084"]
[Result "0-1"]
[Round "03"]
[TimeControl "180+1"]
[Date "2022.02.15"]
[WhiteClock "0:00:50"]
[BlackClock "0:00:45"]

1. e4 {[%clk 0:02:54]}  c5 {[%clk 0:03:00]} 2. Nf3 {[%clk 0:02:52]}  g6 {[%clk 0:03:00]} 3. c3 {[%clk 0:02:51]}  Bg7 {[%clk 0:02:58]} 4. d4 {[%clk 0:02:48]}  cxd4 {[%clk 0:02:59]} 5. cxd4 {[%clk 0:02:47]}  d5 {[%clk 0:02:48]} 6. e5 {[%clk 0:02:29]}  a6 {[%clk 0:02:47]} 7. h3 {[%clk 0:02:24]}  Nc6 {[%clk 0:02:30]} 8. Nc3 {[%clk 0:02:19]}  f6 {[%clk 0:02:27]} 9. exf6 {[%clk 0:02:14]}  Nxf6 {[%clk 0:02:28]} 10. Be3 {[%clk 0:02:06]}  O-O {[%clk 0:02:27]} 11. Be2 {[%clk 0:02:02]}  Kh8 {[%clk 0:02:16]} 12. O-O {[%clk 0:01:57]}  Bf5 {[%clk 0:02:13]} 13. Ne5 {[%clk 0:01:49]}  Ne4 {[%clk 0:02:09]} 14. Nxe4 {[%clk 0:01:42]}  Bxe4 {[%clk 0:02:10]} 15. Nxc6 {[%clk 0:01:36]}  bxc6 {[%clk 0:02:09]} 16. Qa4 {[%clk 0:01:36]}  e5 {[%clk 0:01:53]} 17. dxe5 {[%clk 0:01:32]}  Bxe5 {[%clk 0:01:54]} 18. Qxc6 {[%clk 0:01:31]}  Qh4 {[%clk 0:01:29]} 19. Rad1 {[%clk 0:01:19]}  d4 {[%clk 0:01:24]} 20. Qc5 {[%clk 0:01:11]}  Rf5 {[%clk 0:00:58]} 21. Bxd4 {[%clk 0:01:01]}  Qg5 {[%clk 0:00:58]} 22. Bg4 {[%clk 0:00:54]}  h5 {[%clk 0:00:48]} 23. Bxf5 {[%clk 0:00:50]}  Qxg2# {[%clk 0:00:45]} 0-1


[Site "https://www.chess.com"]

[Event "Titled Tuesday Blitz February 15 Early 2022"]
[White "Stromboli, Ettore"]
[Black "Babazada, Khazar"]
[WhiteFideId "813761"]
[BlackFideId "13413554"]
[WhiteElo "2414"]
[BlackElo "2418"]
[Result "0-1"]
[Round "03"]
[TimeControl "180+1"]
[Date "2022.02.15"]
[WhiteClock "0:00:05"]
[BlackClock "0:01:01"]

1. e4 {[%clk 0:03:00]}  Nf6 {[%clk 0:03:00]} 2. e5 {[%clk 0:02:59]}  Nd5 {[%clk 0:03:00]} 3. Nf3 {[%clk 0:02:59]}  d6 {[%clk 0:02:59]} 4. d4 {[%clk 0:02:59]}  Nb6 {[%clk 0:02:58]} 5. Be2 {[%clk 0:02:57]}  g6 {[%clk 0:02:58]} 6. O-O {[%clk 0:02:57]}  Bg7 {[%clk 0:02:58]} 7. Bf4 {[%clk 0:02:58]}  O-O {[%clk 0:02:57]} 8. Re1 {[%clk 0:02:55]}  Nc6 {[%clk 0:02:57]} 9. exd6 {[%clk 0:02:43]}  cxd6 {[%clk 0:02:58]} 10. c3 {[%clk 0:02:38]}  e5 {[%clk 0:02:58]} 11. dxe5 {[%clk 0:02:22]}  dxe5 {[%clk 0:02:58]} 12. Be3 {[%clk 0:02:22]}  Be6 {[%clk 0:02:48]} 13. Nbd2 {[%clk 0:02:17]}  Qc7 {[%clk 0:02:41]} 14. Ng5 {[%clk 0:02:10]}  Bf5 {[%clk 0:02:38]} 15. Qb3 {[%clk 0:02:04]}  h6 {[%clk 0:02:33]} 16. Nge4 {[%clk 0:02:03]}  Be6 {[%clk 0:02:30]} 17. Qc2 {[%clk 0:02:02]}  Rad8 {[%clk 0:02:23]} 18. Rad1 {[%clk 0:01:56]}  Nd4 {[%clk 0:02:22]} 19. Bxd4 {[%clk 0:01:43]}  exd4 {[%clk 0:02:22]} 20. Nf3 {[%clk 0:01:30]}  dxc3 {[%clk 0:02:18]} 21. Nxc3 {[%clk 0:01:27]}  Rxd1 {[%clk 0:02:15]} 22. Rxd1 {[%clk 0:01:28]}  Bxa2 {[%clk 0:02:15]} 23. Ra1 {[%clk 0:01:15]}  Be6 {[%clk 0:02:10]} 24. Rxa7 {[%clk 0:01:13]}  Rc8 {[%clk 0:02:10]} 25. h3 {[%clk 0:01:09]}  Nd5 {[%clk 0:02:10]} 26. Qe4 {[%clk 0:01:00]}  Bxc3 {[%clk 0:02:02]} 27. bxc3 {[%clk 0:00:54]}  Nxc3 {[%clk 0:02:02]} 28. Qe3 {[%clk 0:00:52]}  Nxe2+ {[%clk 0:02:03]} 29. Qxe2 {[%clk 0:00:52]}  Qc1+ {[%clk 0:02:04]} 30. Kh2 {[%clk 0:00:36]}  Qf4+ {[%clk 0:02:04]} 31. g3 {[%clk 0:00:36]}  Qf5 {[%clk 0:02:04]} 32. Ng1 {[%clk 0:00:08]}  Rc2 {[%clk 0:02:03]} 33. Ra8+ {[%clk 0:00:08]}  Kh7 {[%clk 0:02:02]} 34. Ra5 {[%clk 0:00:07]}  Qxh3+ {[%clk 0:01:44]} 35. Nxh3 {[%clk 0:00:06]}  Rxe2 {[%clk 0:01:45]} 36. Nf4 {[%clk 0:00:05]}  Rxf2+ {[%clk 0:01:44]} 37. Kg1 {[%clk 0:00:06]}  Rf3 {[%clk 0:01:44]} 38. Rb5 {[%clk 0:00:05]}  Rxg3+ {[%clk 0:01:43]} 39. Kf2 {[%clk 0:00:06]}  Rg5 {[%clk 0:01:41]} 40. Rxb7 {[%clk 0:00:05]}  Rf5 {[%clk 0:01:41]} 41. Kg3 {[%clk 0:00:05]}  Bd5 {[%clk 0:01:40]} 42. Nxd5 {[%clk 0:00:03]}  Rxd5 {[%clk 0:01:40]} 43. Rxf7+ {[%clk 0:00:04]}  Kg8 {[%clk 0:01:41]} 44. Re7 {[%clk 0:00:04]}  Rf5 {[%clk 0:01:40]} 45. Kg4 {[%clk 0:00:04]}  Rf7 {[%clk 0:01:40]} 46. Re6 {[%clk 0:00:05]}  Kg7 {[%clk 0:01:40]} 47. Ra6 {[%clk 0:00:06]}  h5+ {[%clk 0:01:39]} 48. Kh4 {[%clk 0:00:05]}  Kh6 {[%clk 0:01:40]} 49. Ra4 {[%clk 0:00:05]}  g5+ {[%clk 0:01:37]} 50. Kg3 {[%clk 0:00:05]}  Rf6 {[%clk 0:01:38]} 51. Ra5 {[%clk 0:00:05]}  Rb6 {[%clk 0:01:38]} 52. Ra3 {[%clk 0:00:04]}  Kg6 {[%clk 0:01:38]} 53. Re3 {[%clk 0:00:05]}  h4+ {[%clk 0:01:38]} 54. Kg4 {[%clk 0:00:06]}  Rb4+ {[%clk 0:01:38]} 55. Kh3 {[%clk 0:00:07]}  Kh5 {[%clk 0:01:39]} 56. Re8 {[%clk 0:00:06]}  Rb3+ {[%clk 0:01:38]} 57. Kh2 {[%clk 0:00:07]}  Kg4 {[%clk 0:01:37]} 58. Re4+ {[%clk 0:00:08]}  Kf3 {[%clk 0:01:38]} 59. Re5 {[%clk 0:00:08]}  g4 {[%clk 0:01:37]} 60. Rf5+ {[%clk 0:00:08]}  Ke4 {[%clk 0:01:38]} 61. Rf8 {[%clk 0:00:09]}  Rb2+ {[%clk 0:01:37]} 62. Kg1 {[%clk 0:00:09]}  h3 {[%clk 0:01:37]} 63. Rf7 {[%clk 0:00:08]}  g3 {[%clk 0:01:35]} 64. Rf1 {[%clk 0:00:08]}  Re2 {[%clk 0:01:33]} 65. Ra1 {[%clk 0:00:07]}  Kf3 {[%clk 0:01:32]} 66. Ra3+ {[%clk 0:00:07]}  Re3 {[%clk 0:01:32]} 67. Ra1 {[%clk 0:00:07]}  g2 {[%clk 0:01:06]} 68. Kh2 {[%clk 0:00:08]}  Kf2 {[%clk 0:01:04]} 69. Rg1 {[%clk 0:00:06]}  Re1 {[%clk 0:01:01]} 70. Rf1+ {[%clk 0:00:06]}  Rxf1 {[%clk 0:01:00]} 71. Kxh3 {[%clk 0:00:05]}  g1=Q {[%clk 0:01:01]} 0-1


[Site "https://www.chess.com"]

[Event "Titled Tuesday Blitz February 15 Early 2022"]
[White "Svane, Frederik"]
[Black "Selbes, Tarik"]
[WhiteFideId "12923044"]
[BlackFideId "6302513"]
[WhiteElo "2459"]
[BlackElo "2290"]
[Result "1-0"]
[Round "03"]
[TimeControl "180+1"]
[Date "2022.02.15"]
[WhiteClock "0:01:05"]
[BlackClock "0:00:10"]

1. e4 {[%clk 0:03:00]}  c6 {[%clk 0:02:12]} 2. d4 {[%clk 0:03:00]}  d5 {[%clk 0:02:11]} 3. exd5 {[%clk 0:03:01]}  cxd5 {[%clk 0:02:11]} 4. Nf3 {[%clk 0:03:02]}  Nf6 {[%clk 0:02:10]} 5. c3 {[%clk 0:03:02]}  Nc6 {[%clk 0:02:10]} 6. Ne5 {[%clk 0:03:02]}  Nd7 {[%clk 0:02:02]} 7. f4 {[%clk 0:02:58]}  Ndxe5 {[%clk 0:01:17]} 8. fxe5 {[%clk 0:02:59]}  Bf5 {[%clk 0:01:17]} 9. Bd3 {[%clk 0:02:56]}  Qd7 {[%clk 0:01:16]} 10. O-O {[%clk 0:02:55]}  Bxd3 {[%clk 0:01:16]} 11. Qxd3 {[%clk 0:02:56]}  e6 {[%clk 0:01:16]} 12. Nd2 {[%clk 0:02:52]}  Be7 {[%clk 0:01:11]} 13. Rf3 {[%clk 0:02:45]}  O-O {[%clk 0:01:11]} 14. Rh3 {[%clk 0:02:44]}  g6 {[%clk 0:01:08]} 15. Nf3 {[%clk 0:02:39]}  f6 {[%clk 0:01:06]} 16. exf6 {[%clk 0:02:30]}  Bxf6 {[%clk 0:01:05]} 17. Bh6 {[%clk 0:02:30]}  Rf7 {[%clk 0:01:05]} 18. Re1 {[%clk 0:02:29]}  Re8 {[%clk 0:01:04]} 19. Qe3 {[%clk 0:02:19]}  e5 {[%clk 0:01:04]} 20. dxe5 {[%clk 0:02:06]}  Nxe5 {[%clk 0:01:03]} 21. Nxe5 {[%clk 0:01:51]}  Rxe5 {[%clk 0:01:02]} 22. Qd2 {[%clk 0:01:52]}  Rfe7 {[%clk 0:00:59]} 23. Rxe5 {[%clk 0:01:50]}  Rxe5 {[%clk 0:00:59]} 24. Rf3 {[%clk 0:01:49]}  Qe7 {[%clk 0:00:58]} 25. Be3 {[%clk 0:01:43]}  Qe6 {[%clk 0:00:44]} 26. Bf2 {[%clk 0:01:30]}  Kg7 {[%clk 0:00:32]} 27. Qf4 {[%clk 0:01:17]}  Rf5 {[%clk 0:00:11]} 28. Qc7+ {[%clk 0:01:15]}  Kh6 {[%clk 0:00:10]} 29. Be3+ {[%clk 0:01:05]}  g5 {[%clk 0:00:10]} 30. Rh3+ {[%clk 0:01:04]}  Kg6 {[%clk 0:00:10]} 31. Qxh7# {[%clk 0:01:05]} 1-0


[Site "https://www.chess.com"]

[Event "Titled Tuesday Blitz February 15 Early 2022"]
[White "Svane, Rasmus"]
[Black "Annaberdiyev, Babageldi"]
[WhiteFideId "4657101"]
[BlackFideId "14000385"]
[WhiteElo "2645"]
[BlackElo "2332"]
[Result "1/2-1/2"]
[Round "03"]
[TimeControl "180+1"]
[Date "2022.02.15"]
[WhiteClock "0:00:14"]
[BlackClock "0:00:18"]

1. Nf3 {[%clk 0:03:00]}  e6 {[%clk 0:03:00]} 2. g3 {[%clk 0:03:00]}  d5 {[%clk 0:02:58]} 3. Bg2 {[%clk 0:03:01]}  f5 {[%clk 0:02:57]} 4. O-O {[%clk 0:03:01]}  Nf6 {[%clk 0:02:57]} 5. c4 {[%clk 0:03:02]}  c6 {[%clk 0:02:56]} 6. d3 {[%clk 0:03:02]}  Bc5 {[%clk 0:02:56]} 7. Qc2 {[%clk 0:03:01]}  O-O {[%clk 0:02:50]} 8. cxd5 {[%clk 0:02:59]}  Bb6 {[%clk 0:02:50]} 9. dxe6 {[%clk 0:02:57]}  Bxe6 {[%clk 0:02:51]} 10. Ng5 {[%clk 0:02:51]}  Qe7 {[%clk 0:02:33]} 11. Nxe6 {[%clk 0:02:50]}  Qxe6 {[%clk 0:02:34]} 12. Na3 {[%clk 0:02:46]}  Nbd7 {[%clk 0:02:28]} 13. Qc4 {[%clk 0:02:45]}  Rae8 {[%clk 0:02:25]} 14. e3 {[%clk 0:02:45]}  Bc7 {[%clk 0:02:21]} 15. b3 {[%clk 0:02:43]}  a6 {[%clk 0:02:18]} 16. Bb2 {[%clk 0:02:42]}  Nd5 {[%clk 0:02:15]} 17. Bxd5 {[%clk 0:02:36]}  Qxd5 {[%clk 0:02:12]} 18. Rac1 {[%clk 0:02:35]}  Be5 {[%clk 0:02:07]} 19. Bxe5 {[%clk 0:02:10]}  Nxe5 {[%clk 0:02:05]} 20. Qxd5+ {[%clk 0:02:10]}  cxd5 {[%clk 0:02:06]} 21. d4 {[%clk 0:02:11]}  Nd3 {[%clk 0:01:52]} 22. Rc3 {[%clk 0:02:05]}  Nb4 {[%clk 0:01:49]} 23. Rc5 {[%clk 0:01:32]}  Rc8 {[%clk 0:01:46]} 24. Rfc1 {[%clk 0:01:31]}  Rxc5 {[%clk 0:01:43]} 25. Rxc5 {[%clk 0:01:32]}  Rd8 {[%clk 0:01:43]} 26. Nc2 {[%clk 0:01:22]}  b6 {[%clk 0:01:30]} 27. Rc7 {[%clk 0:01:18]}  Nxa2 {[%clk 0:01:30]} 28. Rc6 {[%clk 0:01:17]}  Rb8 {[%clk 0:01:26]} 29. Kg2 {[%clk 0:01:15]}  Kf7 {[%clk 0:01:23]} 30. Kf3 {[%clk 0:01:15]}  a5 {[%clk 0:01:19]} 31. Kf4 {[%clk 0:01:11]}  Nc1 {[%clk 0:01:14]} 32. Na1 {[%clk 0:00:34]}  Nd3+ {[%clk 0:01:11]} 33. Kxf5 {[%clk 0:00:35]}  g6+ {[%clk 0:01:06]} 34. Kg5 {[%clk 0:00:35]}  Re8 {[%clk 0:00:59]} 35. Rf6+ {[%clk 0:00:28]}  Kg7 {[%clk 0:00:57]} 36. Rxb6 {[%clk 0:00:28]}  h6+ {[%clk 0:00:54]} 37. Kg4 {[%clk 0:00:28]}  Nxf2+ {[%clk 0:00:53]} 38. Kf3 {[%clk 0:00:28]}  Ne4 {[%clk 0:00:52]} 39. Rb7+ {[%clk 0:00:28]}  Kf6 {[%clk 0:00:45]} 40. Nc2 {[%clk 0:00:25]}  Kg5 {[%clk 0:00:42]} 41. h4+ {[%clk 0:00:23]}  Kh5 {[%clk 0:00:40]} 42. Kf4 {[%clk 0:00:18]}  g5+ {[%clk 0:00:32]} 43. hxg5 {[%clk 0:00:18]}  hxg5+ {[%clk 0:00:33]} 44. Kf3 {[%clk 0:00:15]}  Rf8+ {[%clk 0:00:28]} 45. Ke2 {[%clk 0:00:16]}  Rf2+ {[%clk 0:00:28]} 46. Kd1 {[%clk 0:00:16]}  Rf1+ {[%clk 0:00:19]} 47. Ne1 {[%clk 0:00:15]}  Rf2 {[%clk 0:00:15]} 48. Rd7 {[%clk 0:00:12]}  Nc3+ {[%clk 0:00:15]} 49. Kc1 {[%clk 0:00:13]}  Na2+ {[%clk 0:00:15]} 50. Kd1 {[%clk 0:00:13]}  Nc3+ {[%clk 0:00:16]} 51. Kc1 {[%clk 0:00:13]}  Na2+ {[%clk 0:00:17]} 52. Kd1 {[%clk 0:00:14]}  Nc3+ {[%clk 0:00:18]} 1/2-1/2


[Site "https://www.chess.com"]